bitfinex/quotes_SOLUSD_20240808
["timestamp","ask_amount","ask_price","bid_price","bid_amount"]
[1723136984276,45.0,158.54,158.39,20.0]
[1723136984481,45.0,158.54,158.39,22.54207202]
[1723136984650,46.48586595,158.54,158.39,22.54207202]
[1723136984850,45.0,158.54,158.39,22.54207202]
[1723136987382,7.79416595,158.53,158.39,22.54207202]
[1723136987594,45.0,158.52,158.39,22.54207202]
[1723136987765,1.48586595,158.51,158.39,22.54207202]
[1723136988083,1.48586595,158.51,158.39,2.54207202]
[1723136988287,51.3076,158.54,158.38,26.59390879]
[1723136988591,52.79336595,158.54,158.38,20.0]
[1723136988756,6.3079,158.53,158.36,1.44336592]
[1723136988955,46.48586595,158.52,158.38,6.59299807]
[1723136989281,40.8399,158.49,158.31,20.0]
[1723136989460,1.48586595,158.48,158.31,20.0]
[1723136989662,52.79596595,158.48,158.32,6.59324307]
[1723136989975,34.53,158.45,158.29,20.0]
[1723136990154,34.53,158.45,158.31,6.59386976]
[1723136990155,45.0,158.44,158.31,6.59386976]
[1723136990588,45.0,158.44,158.32,1.26265539]
[1723136990792,45.0,158.44,158.33,1.26265583]
[1723136991893,34.53,158.49,158.34,1.26248548]
[1723136992065,34.53,158.49,158.34,21.26248548]
[1723136992263,1.48586595,158.48,158.34,20.0]
[1723136992966,34.53,158.49,158.34,20.0]
[1723136993582,1.48586595,158.48,158.34,20.0]
[1723136993792,40.8399,158.49,158.34,20.0]
[1723136993996,40.8399,158.49,158.32,20.0]
[1723136994166,45.0,158.48,158.33,20.0]
[1723136994366,45.0,158.48,158.34,20.0]
[1723136994973,22.3477,158.51,158.36,20.0]
[1723136995185,22.3477,158.51,158.37,27.59775855]
[1723136995495,22.3477,158.51,158.38,40.0]
[1723136995682,15.7286,158.51,158.42,20.0]
[1723136995878,15.7286,158.51,158.43,21.26172093]
[1723136996460,15.7286,158.51,158.43,1.26172093]
[1723136996667,6.3456,158.55,158.43,1.26172093]
[1723136996866,6.3456,158.55,158.43,21.26172093]
[1723136998194,6.3456,158.55,158.43,20.0]
[1723136998399,6.3456,158.55,158.42,20.0]
[1723136998692,12.6528,158.55,158.43,1.26169298]
[1723136998869,6.3456,158.55,158.43,1.26169298]
[1723136999273,45.0,158.54,158.43,1.26169298]
[1723136999575,6.3084,158.52,158.38,20.0]
[1723136999773,45.0,158.51,158.39,1.26196291]
[1723136999974,45.0,158.51,158.38,20.0]
[1723137000176,45.0,158.51,158.39,1.26200914]
[1723137000691,6.3456,158.55,158.38,2.56180878]
[1723137000692,16.2966,158.48,158.38,2.56180878]
[1723137000872,45.0,158.47,158.39,1.0398558]
[1723137001067,45.0,158.47,158.36,20.0]
[1723137001296,45.0,158.47,158.36,40.0]
[1723137001505,15.7333,158.54,158.38,40.0]
[1723137001701,45.0,158.53,158.39,1.26182734]
[1723137001886,45.0,158.53,158.38,40.0]
[1723137001887,45.0,158.53,158.4,21.26178406]
[1723137002075,15.7333,158.54,158.41,20.0]
[1723137002275,15.7333,158.54,158.42,1.26172326]
[1723137002482,15.7333,158.54,158.43,1.26169068]
[1723137002683,21.5809,158.59,158.44,6.1583]
[1723137002895,21.5809,158.59,158.45,1.2614894]
[1723137003089,21.5809,158.59,158.46,1.26145473]
[1723137003474,21.5809,158.59,158.46,21.26145473]
[1723137003972,21.5809,158.59,158.47,20.0]
[1723137004170,21.5809,158.59,158.48,21.26125508]
[1723137004395,7.79186595,158.58,158.49,20.0]
[1723137004611,21.5809,158.59,158.46,20.0]
[1723137004776,21.5809,158.59,158.47,21.26123491]
[1723137005086,21.5809,158.59,158.48,1.26124708]
[1723137005296,21.5809,158.59,158.47,20.0]
[1723137005597,22.6886,158.65,158.48,21.26130838]
[1723137005805,6.039,158.64,158.49,21.26100805]
[1723137006174,6.039,158.64,158.5,20.0]
[1723137006371,6.039,158.64,158.51,21.26101065]
[1723137006686,6.039,158.64,158.53,20.0]
[1723137006891,6.039,158.64,158.54,20.0]
[1723137007075,6.039,158.64,158.52,20.0]
[1723137007795,6.039,158.64,158.53,1.26109879]
[1723137008499,45.0,158.63,158.51,40.0]
[1723137008805,1.48586595,158.62,158.51,20.0]
[1723137008998,1.48586595,158.62,158.5,20.0]
[1723137009212,45.0,158.63,158.51,1.26128214]
[1723137009497,22.4881811,158.69,158.53,22.8115]
[1723137009701,22.4881811,158.69,158.56,20.0]
[1723137009913,15.9454811,158.69,158.59,20.0]
[1723137010080,0.8297811,158.69,158.63,20.0]
[1723137010282,0.8297811,158.69,158.64,1.26008144]
[1723137010498,0.8297811,158.69,158.64,1.26003766]
[1723137010714,0.8297811,158.69,158.64,21.26003766]
[1723137010875,0.8297811,158.69,158.65,1.26014434]
[1723137011486,0.8297811,158.69,158.66,1.26009715]
[1723137011689,0.8297811,158.69,158.65,1.26011204]
[1723137011887,0.8297811,158.69,158.64,20.0]
[1723137012114,0.8297811,158.69,158.65,1.26017491]
[1723137013012,0.8297811,158.69,158.64,20.0]
[1723137013222,0.8297811,158.69,158.62,6.0656]
[1723137013510,15.2917,158.68,158.58,6.5182]
[1723137014021,15.2917,158.68,158.56,15.2167]
[1723137014022,46.48586595,158.67,158.54,6.0318]
[1723137014392,45.0,158.67,158.51,15.0789]
[1723137014587,6.3033,158.65,158.49,6.0318]
[1723137014793,45.0,158.64,158.5,21.26115587]
[1723137015004,45.0,158.64,158.52,20.0]
[1723137015201,45.0,158.64,158.53,21.26073948]
[1723137015511,45.0,158.64,158.53,20.0]
[1723137015689,45.0,158.64,158.54,20.0]
[1723137016191,45.0,158.64,158.55,1.26078683]
[1723137016392,45.0,158.64,158.54,20.0]
[1723137017401,15.2917,158.68,158.54,20.0]
[1723137017588,1.48586595,158.67,158.54,20.0]
[1723137017793,15.2917,158.68,158.55,1.26078352]
[1723137017989,1.48586595,158.67,158.51,20.0]
[1723137018491,15.2917,158.68,158.52,1.26089264]
[1723137018704,45.0,158.67,158.52,20.0]
[1723137019116,15.2917,158.68,158.54,20.0]
[1723137019302,15.2917,158.68,158.55,21.26057734]
[1723137019796,15.2917,158.68,158.55,20.0]
[1723137020392,15.2917,158.68,158.51,20.0]
[1723137020393,15.2917,158.68,158.52,20.0]
[1723137020595,1.48586595,158.67,158.52,20.0]
[1723137020910,46.48586595,158.67,158.52,20.0]
[1723137021095,45.0,158.67,158.53,1.26095965]
[1723137021417,45.0,158.67,158.54,20.0]
[1723137022418,45.0,158.67,158.52,60.0]
[1723137022591,1.48586595,158.66,158.52,40.0]
[1723137022917,1.48586595,158.65,158.49,6.0318]
[1723137023225,52.78816595,158.67,158.49,6.0318]
[1723137023405,45.0,158.67,158.5,1.26098542]
[1723137023598,45.0,158.67,158.49,6.0318]
[1723137023913,45.0,158.67,158.51,20.0]
[1723137024114,45.0,158.67,158.52,1.2609849]
[1723137024304,45.0,158.67,158.52,21.2609849]
[1723137024619,1.48586595,158.66,158.52,20.0]
[1723137024920,6.0259,158.65,158.5,20.0]
[1723137025122,45.0,158.64,158.5,20.0]
[1723137025416,15.6943,158.63,158.5,20.0]
[1723137025590,46.48586595,158.62,158.48,6.57654793]
[1723137026011,6.5624,158.61,158.48,6.57654793]
[1723137026200,46.48586595,158.6,158.48,6.57654793]
[1723137026613,46.48586595,158.6,158.43,20.0]
[1723137026816,16.377,158.58,158.44,6.58206883]
[1723137027021,6.2612,158.56,158.44,6.58206883]
[1723137027391,45.0,158.55,158.44,6.58206883]
[1723137027619,46.48586595,158.55,158.44,6.58206883]
[1723137027915,45.0,158.55,158.44,6.58206883]
[1723137029199,45.0,158.55,158.45,20.0]
[1723137029703,6.2612,158.56,158.46,1.26169763]
[1723137029894,6.2612,158.56,158.45,20.0]
[1723137030319,6.2612,158.56,158.46,1.26163398]
[1723137030495,6.2612,158.56,158.47,20.0]
[1723137030694,6.2612,158.56,158.48,20.0]
[1723137030996,6.2612,158.56,158.49,1.0384154]
[1723137031204,16.377,158.58,158.49,21.0384154]
[1723137031408,16.377,158.58,158.5,20.0]
[1723137031699,16.377,158.58,158.51,1.26116295]
[1723137031902,16.2393,158.63,158.51,41.26116295]
[1723137032094,16.2393,158.63,158.52,20.0]
[1723137032898,16.2393,158.63,158.53,1.26104978]
[1723137033334,16.2393,158.63,158.52,20.0]
[1723137034210,45.0,158.62,158.52,20.0]
[1723137034741,45.0,158.62,158.51,20.0]
[1723137034742,1.48586595,158.61,158.51,20.0]
[1723137034905,1.48586595,158.61,158.49,20.0]
[1723137035217,45.0,158.62,158.49,20.0]
[1723137035421,46.48586595,158.62,158.48,20.0]
[1723137035716,6.5029,158.65,158.47,45.05142116]
[1723137035915,1.48586595,158.64,158.47,45.05142116]
[1723137036124,1.48586595,158.64,158.48,20.0]
[1723137036414,6.5029,158.65,158.48,40.0]
[1723137036628,6.0695,158.63,158.43,20.0]
[1723137036800,6.3055,158.6,158.42,6.1333]
[1723137037007,22.3702,158.58,158.41,20.0]
[1723137037204,1.48586595,158.57,158.43,6.5774257]
[1723137037526,22.3702,158.58,158.44,21.26161308]
[1723137037734,45.0,158.57,158.44,41.26161308]
[1723137038113,45.0,158.57,158.43,6.5774257]
[1723137039037,1.48586595,158.56,158.43,6.5774257]
[1723137039533,45.0,158.57,158.43,6.5774257]
[1723137039899,6.3067,158.56,158.43,6.5774257]
[1723137040104,45.0,158.55,158.43,6.5774257]
[1723137040410,7.79266595,158.56,158.41,6.57729949]
[1723137040608,45.0,158.55,158.41,6.57729949]
[1723137040926,1.48586595,158.56,158.41,6.57729949]
[1723137041223,1.48586595,158.56,158.42,20.0]
[1723137041429,23.85606595,158.58,158.42,20.0]
[1723137041632,22.3702,158.58,158.43,1.26179179]
[1723137041821,22.3702,158.58,158.42,21.2617917]
[1723137042021,22.3702,158.58,158.42,41.2617917]
[1723137042403,22.3702,158.58,158.44,20.0]
[1723137042824,45.0,158.57,158.44,20.0]
[1723137043129,23.85606595,158.58,158.44,20.0]
[1723137043328,1.48586595,158.57,158.44,20.0]
[1723137043536,22.3702,158.58,158.44,21.26173702]
[1723137043704,22.3702,158.58,158.46,20.0]
[1723137043906,22.3702,158.58,158.47,20.0]
[1723137044118,22.3702,158.58,158.48,1.26144357]
[1723137044525,22.3702,158.58,158.49,1.2614213]
[1723137044934,22.3702,158.58,158.47,40.0]
[1723137045636,22.3702,158.58,158.47,20.0]
[1723137045933,22.3702,158.58,158.46,22.49163319]
[1723137046131,22.3702,158.58,158.46,20.0]
[1723137046335,45.0,158.57,158.47,20.0]
[1723137046530,45.0,158.57,158.47,21.26151545]
[1723137046713,45.0,158.57,158.48,20.0]
[1723137047030,45.0,158.57,158.48,21.26145469]
[1723137047226,45.0,158.57,158.48,20.0]
[1723137047412,45.0,158.57,158.47,40.0]
[1723137047613,45.0,158.57,158.47,20.0]
[1723137049018,45.0,158.57,158.48,20.0]
[1723137049936,45.0,158.57,158.47,20.0]
[1723137050237,46.48586595,158.57,158.47,20.0]
[1723137050711,45.0,158.57,158.47,20.0]
[1723137051524,45.0,158.57,158.48,20.0]
[1723137052020,45.0,158.57,158.49,1.2614538]
[1723137052432,45.0,158.57,158.49,21.2614538]
[1723137052637,45.0,158.57,158.5,20.0]
[1723137053029,1.48586595,158.56,158.5,20.0]
[1723137053233,45.0,158.57,158.45,22.48653261]
[1723137053436,45.0,158.57,158.46,20.0]
[1723137053619,45.0,158.57,158.45,42.48653261]
[1723137054015,45.0,158.57,158.46,1.26148122]
[1723137054241,45.0,158.57,158.47,20.0]
[1723137056329,22.3702,158.58,158.47,20.0]
[1723137056621,22.3702,158.58,158.48,1.26131591]
[1723137056822,22.3702,158.58,158.49,1.26131457]
[1723137057129,15.8401,158.62,158.51,20.0]
[1723137057327,15.8401,158.62,158.52,95.6909355]
[1723137057528,15.8401,158.62,158.52,75.6909355]
[1723137058433,15.8401,158.62,158.52,54.43]
[1723137058646,15.8401,158.62,158.53,20.0]
[1723137058840,15.8401,158.62,158.54,20.0]
[1723137059038,15.8401,158.62,158.55,1.26092086]
[1723137059238,15.8401,158.62,158.54,20.0]
[1723137059417,6.1995,158.63,158.55,20.0]
[1723137059744,15.648,158.66,158.56,21.26075982]
[1723137059940,15.648,158.66,158.58,20.0]
[1723137060123,0.8297811,158.69,158.6,20.0]
[1723137060330,1.48586595,158.68,158.61,20.0]
[1723137060516,1.48586595,158.68,158.59,20.0]
[1723137060517,0.8297811,158.69,158.59,20.0]
[1723137060920,1.48586595,158.68,158.59,20.0]
[1723137061118,0.8297811,158.69,158.52,40.0]
[1723137061353,0.8297811,158.69,158.53,21.26081355]
[1723137061529,2.31564705,158.69,158.54,40.0]
[1723137061728,2.31564705,158.69,158.55,20.0]
[1723137061927,16.4158,158.67,158.52,20.0]
[1723137062141,52.64486595,158.66,158.52,20.0]
[1723137063136,52.64486595,158.66,158.51,2.50796314]
[1723137063331,52.64486595,158.66,158.51,20.0]
[1723137063742,52.64486595,158.66,158.48,34.43]
[1723137063743,15.9601,158.63,158.48,20.0]
[1723137063949,1.48586595,158.62,158.47,6.57437748]
[1723137064140,46.48586595,158.62,158.47,6.57437748]
[1723137064637,21.6066,158.61,158.47,9.07377116]
[1723137064950,6.0297,158.58,158.47,9.07377116]
[1723137065130,46.48586595,158.57,158.47,9.07377116]
[1723137065740,15.183,158.56,158.47,6.57437748]
[1723137066052,15.183,158.56,158.43,2.5260644]
[1723137066053,45.0,158.55,158.43,2.5260644]
[1723137066348,45.0,158.55,158.44,6.57854095]
[1723137067325,45.0,158.55,158.45,1.26187548]
[1723137067527,45.0,158.55,158.44,6.57854095]
[1723137068047,6.5223,158.53,158.44,6.57854095]
[1723137068255,46.48586595,158.52,158.45,20.0]
[1723137068463,45.0,158.52,158.4,20.0]
[1723137068761,45.0,158.52,158.42,21.26211503]
[1723137068925,6.5223,158.53,158.43,20.0]
[1723137069131,6.5223,158.53,158.43,21.26177095]
[1723137069329,6.5223,158.53,158.44,20.0]
[1723137069541,6.5223,158.53,158.45,20.0]
[1723137070351,45.0,158.52,158.46,1.26177973]
[1723137070532,45.0,158.52,158.45,20.0]
[1723137070735,1.48586595,158.51,158.45,20.0]
[1723137071032,1.48586595,158.51,158.43,2.53913526]
[1723137071248,1.48586595,158.51,158.41,6.57956148]
[1723137071249,15.7387,158.5,158.41,6.57956148]
[1723137071752,46.48586595,158.49,158.41,6.57956148]
[1723137071953,45.0,158.49,158.41,6.57956148]
[1723137072631,46.48586595,158.49,158.42,20.0]
[1723137072832,45.0,158.49,158.42,20.0]
[1723137073635,15.7387,158.5,158.42,40.0]
[1723137074244,15.7387,158.5,158.42,20.0]
[1723137074439,15.7387,158.5,158.43,20.0]
[1723137074641,15.7387,158.5,158.42,20.0]
[1723137074856,15.7387,158.5,158.43,20.0]
[1723137075049,15.7387,158.5,158.42,20.0]
[1723137075267,15.7387,158.5,158.45,20.0]
[1723137076244,6.5223,158.53,158.45,20.0]
[1723137076447,15.5095,158.54,158.47,54.43]
[1723137076448,15.0159,158.54,158.47,54.43]
[1723137076643,12.8777,158.67,158.49,20.0]
[1723137076967,6.5753,158.64,158.5,1.26143885]
[1723137077165,1.48586595,158.63,158.5,20.0]
[1723137078962,6.5753,158.64,158.51,21.26147938]
[1723137079166,6.5753,158.64,158.53,20.0]
[1723137079470,16.3586,158.63,158.54,20.0]
[1723137079672,1.48586595,158.62,158.54,20.0]
[1723137080038,16.3586,158.63,158.52,20.0]
[1723137080268,45.0,158.62,158.52,20.0]
[1723137080844,1.48586595,158.61,158.52,20.0]
[1723137081072,1.48586595,158.6,158.48,20.0]
[1723137081247,6.3357,158.59,158.48,20.0]
[1723137081562,15.5566,158.57,158.47,20.0]
[1723137081765,45.0,158.56,158.47,20.0]
[1723137081967,6.4107,158.68,158.55,34.43]
[1723137082149,15.5566,158.7,158.59,34.43]
[1723137082352,15.5566,158.7,158.6,1.26038328]
[1723137082657,15.5566,158.7,158.63,20.0]
[1723137082874,15.5566,158.7,158.64,21.26031148]
[1723137083242,15.5566,158.7,158.64,20.0]
[1723137083461,15.5566,158.7,158.61,20.0]
[1723137084064,6.6229,158.67,158.59,1.09584148]
[1723137084952,45.0,158.66,158.59,1.09584148]
[1723137085764,6.6229,158.67,158.59,21.09584148]
[1723137086073,15.5566,158.7,158.63,20.0]
[1723137086370,15.5566,158.7,158.64,21.26025268]
[1723137086578,15.5566,158.7,158.65,1.26022048]
[1723137086784,15.5566,158.7,158.65,20.0]
[1723137087005,50.1659,158.88,158.66,20.0]
[1723137087006,15.2365,158.74,158.66,20.0]
[1723137087164,15.2365,158.74,158.67,20.0]
[1723137087470,15.2365,158.74,158.68,20.0]
[1723137087678,15.2365,158.74,158.68,21.25989585]
[1723137087990,6.472,158.77,158.68,20.0]
[1723137088467,16.2208,158.79,158.68,83.18979349]
[1723137088662,16.2208,158.79,158.68,63.18979349]
[1723137088970,16.2208,158.79,158.68,20.0]
[1723137089266,16.2208,158.79,158.68,41.25989496]
[1723137089469,6.0268,158.83,158.73,20.0]
[1723137089669,6.0268,158.83,158.74,20.0]
[1723137089867,16.5935,158.81,158.74,20.0]
[1723137090191,16.5935,158.81,158.66,20.0]
[1723137090366,16.5935,158.81,158.67,20.0]
[1723137090569,16.5935,158.81,158.68,20.0]
[1723137090766,16.5935,158.81,158.68,41.25987937]
[1723137090970,16.5935,158.81,158.69,20.0]
[1723137091187,16.5935,158.81,158.7,21.25956618]
[1723137091371,16.5935,158.81,158.73,20.0]
[1723137091585,16.5935,158.81,158.74,21.25939603]
[1723137092299,17.3822811,158.86,158.76,20.0]
[1723137092506,17.3822811,158.86,158.75,26.2043]
[1723137092507,17.3822811,158.86,158.77,21.2590252]
[1723137092675,17.3822811,158.86,158.77,40.0]
[1723137092874,17.3822811,158.86,158.77,20.0]
[1723137093079,17.3822811,158.86,158.78,20.0]
[1723137093375,0.8297811,158.86,158.8,20.0]
[1723137093565,0.8297811,158.86,158.81,21.25882336]
[1723137094195,0.8297811,158.86,158.81,20.0]
[1723137094413,0.8297811,158.86,158.79,20.0]
[1723137094579,0.8297811,158.86,158.75,20.0]
[1723137094970,1.48586595,158.85,158.7,20.0]
[1723137095201,0.8297811,158.86,158.68,78.4939]
[1723137095368,0.8297811,158.86,158.76,20.0]
[1723137095573,0.8297811,158.86,158.77,1.25919949]
[1723137095771,0.8297811,158.86,158.76,21.2592584]
[1723137096210,0.8297811,158.86,158.77,20.0]
[1723137096568,0.8297811,158.86,158.78,1.25926657]
[1723137096774,0.8297811,158.86,158.81,20.0]
[1723137097694,0.8297811,158.86,158.79,20.0]
[1723137097874,0.8297811,158.86,158.8,1.25895223]
[1723137098287,0.8297811,158.86,158.81,21.25870552]
[1723137098490,0.8297811,158.86,158.82,20.0]
[1723137099181,0.8297811,158.86,158.83,1.25870388]
[1723137099396,0.8297811,158.86,158.81,40.0]
[1723137099900,0.8297811,158.86,158.82,1.2586989]
[1723137100110,0.8297811,158.86,158.83,20.0]
[1723137100277,0.7297811,158.86,158.8,21.25884531]
[1723137100615,15.0492,158.85,158.77,20.0]
[1723137100777,15.0492,158.85,158.75,20.0]
[1723137101173,6.3994,158.84,158.75,20.0]
[1723137101369,45.0,158.83,158.77,20.0]
[1723137101600,45.0,158.83,158.77,21.25910608]
[1723137102112,0.7297811,158.86,158.8,20.0]
[1723137102279,0.7297811,158.86,158.81,20.0]
[1723137102468,0.7297811,158.86,158.79,21.25888735]
[1723137102673,0.7297811,158.86,158.8,21.2590324]
[1723137102897,0.7297811,158.86,158.81,20.0]
[1723137103104,0.7297811,158.86,158.79,20.0]
[1723137103395,0.7297811,158.86,158.8,20.0]
[1723137104190,0.7297811,158.86,158.8,21.25892731]
[1723137104806,0.7297811,158.86,158.81,20.0]
[1723137106108,0.7297811,158.86,158.79,21.0334965]
[1723137107103,0.7297811,158.86,158.76,20.0]
[1723137108302,0.7297811,158.86,158.77,20.0]
[1723137108601,0.7297811,158.86,158.76,20.0]
[1723137108900,0.7297811,158.86,158.74,20.0]
[1723137109199,0.7297811,158.86,158.76,40.0]
[1723137109397,0.7297811,158.86,158.78,20.0]
[1723137109700,0.7297811,158.86,158.79,21.25895162]
[1723137109907,0.7297811,158.86,158.79,20.0]
[1723137110071,0.7297811,158.86,158.77,20.0]
[1723137110276,0.7297811,158.86,158.77,21.03366792]
[1723137110771,0.7297811,158.86,158.78,20.0]
[1723137111577,0.7297811,158.86,158.79,20.0]
[1723137111983,0.7297811,158.86,158.78,21.25909796]
[1723137112296,0.7297811,158.86,158.79,20.0]
[1723137112681,0.7297811,158.86,158.8,1.25915255]
[1723137113082,0.7297811,158.86,158.77,21.25903557]
[1723137114899,0.7297811,158.86,158.79,20.0]
[1723137115100,0.7297811,158.86,158.8,1.25901793]
[1723137115308,0.7297811,158.86,158.79,21.25901916]
[1723137115486,0.7297811,158.86,158.8,20.0]
[1723137116728,0.7297811,158.86,158.75,34.27]
[1723137116729,0.7297811,158.86,158.77,20.0]
[1723137116891,6.4693,158.84,158.71,54.27]
[1723137117093,45.0,158.83,158.71,55.52942838]
[1723137117419,45.0,158.83,158.73,20.0]
[1723137117801,45.0,158.83,158.71,36.81005623]
[1723137118424,45.0,158.83,158.74,20.0]
[1723137119300,45.0,158.83,158.75,20.0]
[1723137119715,15.3139,158.82,158.71,2.54005623]
[1723137119909,45.0,158.81,158.71,1.25957834]
[1723137120095,45.0,158.81,158.7,29.16592851]
[1723137120610,45.0,158.81,158.71,1.25963318]
[1723137120806,45.0,158.81,158.7,29.16592851]
[1723137120999,45.0,158.81,158.71,20.0]
[1723137121816,45.0,158.81,158.71,21.25967588]
[1723137122407,45.0,158.81,158.71,20.0]
[1723137122716,45.0,158.81,158.72,20.0]
[1723137122924,45.0,158.81,158.73,20.0]
[1723137123125,45.0,158.81,158.71,20.0]
[1723137123418,45.0,158.81,158.72,20.0]
[1723137123720,45.0,158.81,158.73,20.0]
[1723137123923,45.0,158.81,158.73,21.25958306]
[1723137124100,15.3139,158.82,158.76,20.0]
[1723137124296,1.1777469,158.82,158.78,20.0]
[1723137124516,1.1777469,158.82,158.79,21.03359746]
[1723137124827,6.4693,158.84,158.8,1.25912798]
[1723137125029,6.4693,158.84,158.82,20.0]
[1723137125229,0.7297811,158.86,158.83,21.25898326]
[1723137126027,0.7297811,158.86,158.83,20.0]
[1723137126202,0.7297811,158.86,158.84,1.258828]
[1723137126405,0.7297811,158.86,158.83,20.0]
[1723137126603,191.790748,159.0,158.85,34.27]
[1723137126906,191.790748,159.0,158.86,20.0]
[1723137127312,16.1487,158.99,158.86,20.0]
[1723137127496,17.63456595,158.99,158.86,20.0]
[1723137127692,1.48586595,158.98,158.85,20.0]
[1723137128126,16.1487,158.99,158.85,20.0]
[1723137128897,45.0,158.98,158.85,20.0]
[1723137129297,46.48586595,158.98,158.85,20.0]
[1723137129531,6.0978,158.97,158.85,20.0]
[1723137129714,6.0978,158.97,158.88,20.0]
[1723137129893,16.1487,158.99,158.9,20.0]
[1723137130095,16.1487,158.99,158.88,54.27]
[1723137130096,16.1487,158.99,158.92,20.0]
[1723137130409,155.840972,159.0,158.95,20.0]
[1723137130597,155.840972,159.0,158.97,20.0]
[1723137130800,76.99080622,159.0,158.98,41.25772]
[1723137131027,66.29080622,159.0,158.98,40.0]
[1723137131200,66.29080622,159.0,158.98,20.0]
[1723137131399,66.29080622,159.0,158.97,20.0]
[1723137131614,66.29080622,159.0,158.98,20.0]
[1723137131822,57.68704122,159.0,158.98,20.0]
[1723137132027,57.68704122,159.0,158.97,61.03102065]
[1723137132335,57.68704122,159.0,158.98,46.76102065]
[1723137132833,21.763,159.16,159.01,40.0]
[1723137133009,21.763,159.16,159.08,6.56712702]
[1723137133199,21.763,159.16,159.09,21.25694401]
[1723137133398,21.763,159.16,159.09,20.0]
[1723137133695,21.763,159.16,159.07,20.0]
[1723137133894,21.763,159.16,159.04,20.0]
[1723137134095,21.763,159.16,159.06,20.0]
[1723137134417,21.763,159.16,159.07,21.25676321]
[1723137134624,21.763,159.16,159.07,20.0]
[1723137135101,21.763,159.16,159.07,40.0]
[1723137135415,0.8297811,159.18,159.09,20.0]
[1723137135924,0.8297811,159.18,159.09,21.25651693]
[1723137136228,0.8297811,159.18,159.1,20.0]
[1723137136808,0.8297811,159.18,159.08,20.0]
[1723137136809,0.8297811,159.18,159.09,20.0]
[1723137137128,0.8297811,159.18,159.09,21.25667547]
[1723137137336,0.8297811,159.18,159.1,20.0]
[1723137137512,0.8297811,159.18,159.12,20.0]
[1723137137712,0.8297811,159.18,159.13,20.0]
[1723137138135,0.8297811,159.18,159.14,1.25646456]
[1723137138521,0.8297811,159.18,159.13,20.0]
[1723137139329,0.8297811,159.18,159.13,40.0]
[1723137139523,0.8297811,159.18,159.15,20.0]
[1723137139728,4.9365811,159.27,159.16,20.0]
[1723137140127,4.9365811,159.27,159.17,21.25597098]
[1723137140409,1.56979657,159.26,159.18,20.0]
[1723137140644,4.9365811,159.27,159.16,20.0]
[1723137140833,1.57045891,159.26,159.16,20.0]
[1723137141012,4.9365811,159.27,159.13,21.25637436]
[1723137141211,4.9365811,159.27,159.13,20.0]
[1723137141427,4.9365811,159.27,159.11,20.0]
[1723137141635,45.0,159.26,159.11,20.0]
[1723137142027,45.0,159.26,159.12,20.0]
[1723137142343,45.0,159.26,159.12,21.25648034]
[1723137142518,1.57088927,159.25,159.09,20.0]
[1723137142838,79.27,159.26,159.09,20.0]
[1723137143220,79.27,159.26,159.12,20.0]
[1723137143419,79.27,159.26,159.12,21.25635656]
[1723137143628,45.0,159.26,159.12,20.0]
[1723137144116,45.0,159.26,159.1,20.0]
[1723137144117,15.3175,159.25,159.1,20.0]
[1723137144330,46.57093256,159.24,159.07,20.0]
[1723137144653,46.57093256,159.24,158.96,34.27]
[1723137144654,15.3175,159.21,159.05,20.0]
[1723137144811,46.57123485,159.2,159.03,20.0]